[Event "*** Titled Tuesday Blitz"]
[Site "Chess.com"]
[Date "2020.05.05"]
[Round "1"]
[White "FedaMaster"]
[Black "GM4life"]
[Result "1-0"]
[WhiteElo "2523"]
[BlackElo "2153"]
[TimeControl "180+1"]
[EndTime "10:07:13 PDT"]
[Termination "FedaMaster won by checkmate"]

1. e4 {[%clk 0:03:00.5]} 1... c5 {[%clk 0:02:58.1]} 2. Nf3 {[%clk 0:03:00.3]}
2... d6 {[%clk 0:02:54.8]} 3. d4 {[%clk 0:03:00.5]} 3... cxd4 {[%clk 0:02:54.9]}
4. Nxd4 {[%clk 0:03:01.4]} 4... Nf6 {[%clk 0:02:55.2]} 5. f3 {[%clk 0:03:02]}
5... e5 {[%clk 0:02:53.7]} 6. Bb5+ {[%clk 0:03:01.3]} 6... Nbd7 {[%clk
0:02:49.4]} 7. Nf5 {[%clk 0:03:01.1]} 7... Qc7 {[%clk 0:02:47.5]} 8. Bg5 {[%clk
0:02:46.9]} 8... a6 {[%clk 0:02:31]} 9. Bxf6 {[%clk 0:02:12.2]} 9... gxf6 {[%clk
0:02:30.1]} 10. Ba4 {[%clk 0:01:53.2]} 10... b5 {[%clk 0:02:26.5]} 11. Bb3
{[%clk 0:01:53.5]} 11... Bb7 {[%clk 0:02:21.7]} 12. Nc3 {[%clk 0:01:52.9]} 12...
Nb6 {[%clk 0:02:15.1]} 13. Qd3 {[%clk 0:01:38.5]} 13... O-O-O {[%clk 0:01:48.5]}
14. O-O-O {[%clk 0:01:25.1]} 14... Qc5 {[%clk 0:01:37.7]} 15. Bxf7 {[%clk
0:01:20.3]} 15... Kb8 {[%clk 0:01:29.3]} 16. Kb1 {[%clk 0:01:19]} 16... Nc4
{[%clk 0:00:57.7]} 17. Bxc4 {[%clk 0:01:11.1]} 17... bxc4 {[%clk 0:00:56.8]} 18.
Qe3 {[%clk 0:01:11.3]} 18... Qa5 {[%clk 0:00:47.4]} 19. Nd5 {[%clk 0:01:07.3]}
19... Rg8 {[%clk 0:00:34.6]} 20. g4 {[%clk 0:01:06.8]} 20... Rg6 {[%clk
0:00:33.5]} 21. h4 {[%clk 0:01:01]} 21... Bg7 {[%clk 0:00:27.3]} 22. Nde7 {[%clk
0:00:50.4]} 22... d5 {[%clk 0:00:18.6]} 23. Nxg6 {[%clk 0:00:38.2]} 23... d4
{[%clk 0:00:18.2]} 24. Qc1 {[%clk 0:00:36.1]} 24... hxg6 {[%clk 0:00:17.7]} 25.
Nxg7 {[%clk 0:00:36.2]} 25... Rd6 {[%clk 0:00:14.5]} 26. c3 {[%clk 0:00:30.5]}
26... d3 {[%clk 0:00:06.1]} 27. h5 {[%clk 0:00:27.1]} 27... g5 {[%clk
0:00:05.9]} 28. h6 {[%clk 0:00:27.2]} 28... Rb6 {[%clk 0:00:06.1]} 29. Rh2
{[%clk 0:00:26.8]} 29... Qa3 {[%clk 0:00:05.9]} 30. h7 {[%clk 0:00:24.3]} 30...
Bc6 {[%clk 0:00:06.3]} 31. h8=Q+ {[%clk 0:00:24.3]} 31... Ka7 {[%clk 0:00:07.2]}
32. Ne6 {[%clk 0:00:21.7]} 32... Ba4 {[%clk 0:00:06.8]} 33. Rh7+ {[%clk
0:00:19.4]} 33... Rb7 {[%clk 0:00:06.8]} 34. Rxb7+ {[%clk 0:00:19.4]} 34... Kxb7
{[%clk 0:00:07.7]} 35. bxa3 {[%clk 0:00:20]} 35... Bc2+ {[%clk 0:00:06.8]} 36.
Ka1 {[%clk 0:00:19.4]} 36... Bxd1 {[%clk 0:00:06.5]} 37. Qb2+ {[%clk 0:00:19.6]}
37... Kc6 {[%clk 0:00:07]} 38. Qc8+ {[%clk 0:00:19.4]} 38... Kd6 {[%clk
0:00:06.8]} 39. Qb6+ {[%clk 0:00:19.2]} 39... Ke7 {[%clk 0:00:07.7]} 40. Qcc7+
{[%clk 0:00:19.1]} 40... Ke8 {[%clk 0:00:07.4]} 41. Qbc6# {[%clk 0:00:19.6]} 1-0

[Event "*** Titled Tuesday Blitz"]
[Site "Chess.com"]
[Date "2020.05.05"]
[Round "1"]
[White "Islamovqaasim"]
[Black "thedjoker98"]
[Result "0-1"]
[WhiteElo "2041"]
[BlackElo "2487"]
[TimeControl "180+1"]
[EndTime "10:07:13 PDT"]
[Termination "thedjoker98 won on time"]

1. d4 {[%clk 0:03:00.1]} 1... d5 {[%clk 0:02:59.4]} 2. Nf3 {[%clk 0:03:00.4]}
2... Nf6 {[%clk 0:02:56.8]} 3. c4 {[%clk 0:03:01.3]} 3... c6 {[%clk 0:02:54.6]}
4. cxd5 {[%clk 0:03:02.2]} 4... cxd5 {[%clk 0:02:54.7]} 5. Nc3 {[%clk
0:03:03.1]} 5... Nc6 {[%clk 0:02:54.9]} 6. Bg5 {[%clk 0:03:03.2]} 6... Ne4
{[%clk 0:02:54.7]} 7. h4 {[%clk 0:03:03.3]} 7... h6 {[%clk 0:02:41]} 8. Bd2
{[%clk 0:03:00]} 8... Nxd2 {[%clk 0:02:38.6]} 9. Qxd2 {[%clk 0:02:59.1]} 9...
Bg4 {[%clk 0:02:36]} 10. g3 {[%clk 0:02:54.6]} 10... e6 {[%clk 0:02:30.5]} 11.
Bg2 {[%clk 0:02:54.1]} 11... Be7 {[%clk 0:02:30.3]} 12. O-O {[%clk 0:02:54]}
12... O-O {[%clk 0:02:30.5]} 13. a3 {[%clk 0:02:49.2]} 13... Rc8 {[%clk
0:02:28.8]} 14. Rac1 {[%clk 0:02:48.9]} 14... Na5 {[%clk 0:02:28.3]} 15. Ne5
{[%clk 0:02:36.8]} 15... Nb3 {[%clk 0:02:25.4]} 16. Qc2 {[%clk 0:02:24.2]} 16...
Nxc1 {[%clk 0:02:21.6]} 17. Nxg4 {[%clk 0:02:20.7]} 17... Na2 {[%clk 0:02:21.6]}
18. Qb3 {[%clk 0:01:52.9]} 18... Nxc3 {[%clk 0:02:20.1]} 19. bxc3 {[%clk
0:01:53.5]} 19... b6 {[%clk 0:02:17.7]} 20. a4 {[%clk 0:01:50.2]} 20... Qc7
{[%clk 0:02:11.2]} 21. Rc1 {[%clk 0:01:40.6]} 21... Qc4 {[%clk 0:02:10.6]} 22.
Qc2 {[%clk 0:01:33.9]} 22... Bd6 {[%clk 0:01:58.5]} 23. Ne3 {[%clk 0:01:30.9]}
23... Qc7 {[%clk 0:01:54.2]} 24. Qd3 {[%clk 0:01:26.7]} 24... Qd7 {[%clk
0:01:50.6]} 25. c4 {[%clk 0:01:17.9]} 25... dxc4 {[%clk 0:01:48.6]} 26. Rxc4
{[%clk 0:01:16.1]} 26... Rxc4 {[%clk 0:01:48.5]} 27. Nxc4 {[%clk 0:01:17]} 27...
Rc8 {[%clk 0:01:43.7]} 28. Qb3 {[%clk 0:01:01.6]} 28... Be7 {[%clk 0:01:35.2]}
29. e3 {[%clk 0:00:58.7]} 29... Bf6 {[%clk 0:01:35.2]} 30. Nd2 {[%clk
0:00:54.3]} 30... Qc7 {[%clk 0:01:32.5]} 31. Ne4 {[%clk 0:00:51.6]} 31... Be7
{[%clk 0:01:31.8]} 32. Qb5 {[%clk 0:00:37.5]} 32... Rd8 {[%clk 0:01:02.4]} 33.
Qa6 {[%clk 0:00:32]} 33... Rd7 {[%clk 0:00:59.3]} 34. h5 {[%clk 0:00:11.1]}
34... Rd5 {[%clk 0:00:53.1]} 35. g4 {[%clk 0:00:05.6]} 35... Ra5 {[%clk
0:00:53.1]} 36. Qd3 {[%clk 0:00:05.4]} 36... Rxa4 {[%clk 0:00:52.5]} 37. Qb3
{[%clk 0:00:05.7]} 37... Rc4 {[%clk 0:00:50.7]} 38. Qd1 {[%clk 0:00:01.5]} 38...
Rc1 {[%clk 0:00:50.6]} 0-1

[Event "*** Titled Tuesday Blitz"]
[Site "Chess.com"]
[Date "2020.05.05"]
[Round "1"]
[White "Sanan_Sjugirov"]
[Black "ezkybel"]
[Result "1-0"]
[WhiteElo "2864"]
[BlackElo "2441"]
[TimeControl "180+1"]
[EndTime "10:07:14 PDT"]
[Termination "Sanan_Sjugirov won on time"]

1. e4 {[%clk 0:03:00.9]} 1... e6 {[%clk 0:02:59.7]} 2. d4 {[%clk 0:03:00.6]}
2... d5 {[%clk 0:02:59.5]} 3. e5 {[%clk 0:03:00.9]} 3... c5 {[%clk 0:02:59.3]}
4. c3 {[%clk 0:03:01.2]} 4... Nc6 {[%clk 0:02:59.1]} 5. Nf3 {[%clk 0:03:01.5]}
5... Bd7 {[%clk 0:02:58.9]} 6. Be2 {[%clk 0:03:01.2]} 6... Nge7 {[%clk 0:02:56]}
7. Na3 {[%clk 0:02:58.9]} 7... cxd4 {[%clk 0:02:51.2]} 8. cxd4 {[%clk
0:02:59.8]} 8... Nf5 {[%clk 0:02:51.8]} 9. Nc2 {[%clk 0:02:59.7]} 9... h5 {[%clk
0:02:52.2]} 10. h4 {[%clk 0:02:57.3]} 10... Be7 {[%clk 0:02:34.8]} 11. g3 {[%clk
0:02:53.2]} 11... Rc8 {[%clk 0:02:34.2]} 12. O-O {[%clk 0:02:48.8]} 12... g6
{[%clk 0:02:33.6]} 13. Rb1 {[%clk 0:02:30.7]} 13... Rg8 {[%clk 0:02:10.6]} 14.
b4 {[%clk 0:02:06]} 14... a6 {[%clk 0:01:58.2]} 15. a4 {[%clk 0:01:46.8]} 15...
g5 {[%clk 0:01:32.5]} 16. Bxg5 {[%clk 0:01:33.1]} 16... Bxg5 {[%clk 0:01:28.9]}
17. Nxg5 {[%clk 0:01:34]} 17... Rxg5 {[%clk 0:01:26.6]} 18. hxg5 {[%clk
0:01:34.9]} 18... Qxg5 {[%clk 0:01:27.3]} 19. Rb3 {[%clk 0:00:49.9]} 19... Nce7
{[%clk 0:01:04.7]} 20. b5 {[%clk 0:00:38.2]} 20... Rc7 {[%clk 0:00:35.7]} 21.
Ne3 {[%clk 0:00:29.4]} 21... Nxe3 {[%clk 0:00:32.6]} 22. Rxe3 {[%clk 0:00:30.3]}
22... axb5 {[%clk 0:00:31.2]} 23. Bxb5 {[%clk 0:00:27.1]} 23... Nf5 {[%clk
0:00:30.5]} 24. Bxd7+ {[%clk 0:00:26.1]} 24... Kxd7 {[%clk 0:00:28.5]} 25. Rb3
{[%clk 0:00:25.4]} 25... h4 {[%clk 0:00:23.6]} 26. Qd3 {[%clk 0:00:21.1]} 26...
Qg4 {[%clk 0:00:19.9]} 27. Qf3 {[%clk 0:00:08.4]} 27... Qxd4 {[%clk 0:00:15.7]}
28. Qh5 {[%clk 0:00:03.9]} 28... Ke8 {[%clk 0:00:03.9]} 29. g4 {[%clk
0:00:03.6]} 1-0

[Event "*** Titled Tuesday Blitz"]
[Site "Chess.com"]
[Date "2020.05.05"]
[Round "1"]
[White "swisspower96"]
[Black "queen_iryna"]
[Result "1-0"]
[WhiteElo "2606"]
[BlackElo "2283"]
[TimeControl "180+1"]
[EndTime "10:07:14 PDT"]
[Termination "swisspower96 won by resignation"]

1. d4 {[%clk 0:03:00.9]} 1... d5 {[%clk 0:02:58.2]} 2. c4 {[%clk 0:03:01]} 2...
c6 {[%clk 0:02:56.1]} 3. cxd5 {[%clk 0:03:00.4]} 3... cxd5 {[%clk 0:02:55.5]} 4.
Bf4 {[%clk 0:03:01]} 4... Nc6 {[%clk 0:02:52.9]} 5. e3 {[%clk 0:03:01.2]} 5...
Nf6 {[%clk 0:02:52.2]} 6. Nc3 {[%clk 0:03:01.6]} 6... a6 {[%clk 0:02:51.9]} 7.
Be2 {[%clk 0:02:59]} 7... e6 {[%clk 0:02:51]} 8. Nf3 {[%clk 0:02:46.2]} 8... Be7
{[%clk 0:02:50.6]} 9. h3 {[%clk 0:02:45]} 9... O-O {[%clk 0:02:48.5]} 10. O-O
{[%clk 0:02:45]} 10... Bd7 {[%clk 0:02:48]} 11. Bd3 {[%clk 0:02:44.7]} 11... Rc8
{[%clk 0:02:47.8]} 12. a3 {[%clk 0:02:43.8]} 12... Na5 {[%clk 0:02:43.9]} 13.
Ne5 {[%clk 0:02:43]} 13... Nc4 {[%clk 0:02:34.5]} 14. Qe2 {[%clk 0:02:36.4]}
14... b5 {[%clk 0:02:33]} 15. Rfc1 {[%clk 0:02:31.4]} 15... Be8 {[%clk
0:02:18.1]} 16. Na2 {[%clk 0:02:19.3]} 16... Nd7 {[%clk 0:02:11.9]} 17. e4
{[%clk 0:01:53.8]} 17... f6 {[%clk 0:01:46.3]} 18. Nf3 {[%clk 0:01:44.2]} 18...
Ndb6 {[%clk 0:01:12]} 19. Rc2 {[%clk 0:01:17.2]} 19... Bg6 {[%clk 0:01:09.8]}
20. Nc3 {[%clk 0:00:58.3]} 20... Nxb2 {[%clk 0:01:02]} 21. Rxb2 {[%clk
0:00:48.6]} 21... Rxc3 {[%clk 0:01:01]} 22. Nh4 {[%clk 0:00:37]} 22... Bxe4
{[%clk 0:00:49.7]} 23. Bxe4 {[%clk 0:00:36.7]} 23... dxe4 {[%clk 0:00:50.6]} 24.
Bd2 {[%clk 0:00:31.7]} 24... Rc4 {[%clk 0:00:44.5]} 25. Ba5 {[%clk 0:00:30.6]}
25... Qxd4 {[%clk 0:00:38.1]} 26. Rd1 {[%clk 0:00:27.6]} 26... Qc5 {[%clk
0:00:34.4]} 27. Qg4 {[%clk 0:00:24.5]} 27... f5 {[%clk 0:00:24.4]} 28. Qh5
{[%clk 0:00:24.9]} 28... Nd5 {[%clk 0:00:20.1]} 29. g3 {[%clk 0:00:23.4]} 29...
Rc1 {[%clk 0:00:18.8]} 30. Rd2 {[%clk 0:00:18.9]} 30... Rxd1+ {[%clk 0:00:17.9]}
31. Rxd1 {[%clk 0:00:19.8]} 31... Rc8 {[%clk 0:00:16]} 32. Ng2 {[%clk
0:00:19.6]} 32... Bf6 {[%clk 0:00:14.5]} 33. Bd2 {[%clk 0:00:19.1]} 33... Qxa3
{[%clk 0:00:11.9]} 34. Nf4 {[%clk 0:00:18.1]} 34... Nxf4 {[%clk 0:00:11.2]} 35.
Bxf4 {[%clk 0:00:19]} 35... g6 {[%clk 0:00:08.1]} 36. Qe2 {[%clk 0:00:18.3]}
36... Rc1 {[%clk 0:00:05.4]} 37. Bxc1 {[%clk 0:00:17.7]} 37... Qxc1 {[%clk
0:00:06.3]} 38. Rxc1 {[%clk 0:00:17.7]} 1-0

[Event "*** Titled Tuesday Blitz"]
[Site "Chess.com"]
[Date "2020.05.05"]
[Round "1"]
[White "beatnoguera"]
[Black "kleopl"]
[Result "1-0"]
[WhiteElo "1828"]
[BlackElo "2459"]
[TimeControl "180+1"]
[EndTime "10:07:14 PDT"]
[Termination "beatnoguera won by resignation"]

1. e4 {[%clk 0:02:59.7]} 1... c6 {[%clk 0:02:57.5]} 2. Nc3 {[%clk 0:02:55.8]}
2... d5 {[%clk 0:02:55.8]} 3. d3 {[%clk 0:02:48.5]} 3... e5 {[%clk 0:02:50]} 4.
g3 {[%clk 0:02:28.5]} 4... Bb4 {[%clk 0:02:29.5]} 5. Bd2 {[%clk 0:02:22.9]} 5...
d4 {[%clk 0:02:26.2]} 6. Nce2 {[%clk 0:02:09.3]} 6... Bxd2+ {[%clk 0:02:23.1]}
7. Qxd2 {[%clk 0:02:07.7]} 7... Ne7 {[%clk 0:02:22.8]} 8. Bg2 {[%clk 0:02:03.7]}
8... O-O {[%clk 0:02:22]} 9. f4 {[%clk 0:02:02]} 9... f6 {[%clk 0:02:17.6]} 10.
Nf3 {[%clk 0:02:01.1]} 10... c5 {[%clk 0:02:17.6]} 11. O-O {[%clk 0:01:58.5]}
11... Nbc6 {[%clk 0:02:17.1]} 12. fxe5 {[%clk 0:01:49.4]} 12... fxe5 {[%clk
0:02:15]} 13. Qg5 {[%clk 0:01:39.1]} 13... Ng6 {[%clk 0:02:11.3]} 14. Qxd8
{[%clk 0:01:36.2]} 14... Rxd8 {[%clk 0:02:12.2]} 15. Rf2 {[%clk 0:01:34.9]}
15... Bg4 {[%clk 0:02:06.3]} 16. Raf1 {[%clk 0:01:34.3]} 16... b5 {[%clk
0:02:06.4]} 17. h3 {[%clk 0:01:33.9]} 17... Bxf3 {[%clk 0:02:01.1]} 18. Rxf3
{[%clk 0:01:33.3]} 18... Rf8 {[%clk 0:01:56.7]} 19. g4 {[%clk 0:01:30.8]} 19...
Rxf3 {[%clk 0:01:55.4]} 20. Rxf3 {[%clk 0:01:30.5]} 20... c4 {[%clk 0:01:52.7]}
21. Ng3 {[%clk 0:01:30.2]} 21... Nf4 {[%clk 0:01:47.4]} 22. Nf5 {[%clk
0:01:28.3]} 22... Rd8 {[%clk 0:01:34.3]} 23. Bf1 {[%clk 0:01:28]} 23... cxd3
{[%clk 0:01:30.7]} 24. Bxd3 {[%clk 0:01:26.8]} 24... a6 {[%clk 0:01:27.4]} 25.
a4 {[%clk 0:01:26.1]} 25... Nb4 {[%clk 0:00:58.9]} 26. axb5 {[%clk 0:01:22.1]}
26... Nbxd3 {[%clk 0:00:58.9]} 27. cxd3 {[%clk 0:01:22.1]} 27... axb5 {[%clk
0:00:58.7]} 28. Ne7+ {[%clk 0:01:19.4]} 28... Kh8 {[%clk 0:00:50.7]} 29. Nc6
{[%clk 0:01:17.1]} 29... Re8 {[%clk 0:00:49.9]} 30. Nxd4 {[%clk 0:01:14.2]}
30... Nxh3+ {[%clk 0:00:37]} 31. Rxh3 {[%clk 0:01:12.6]} 31... exd4 {[%clk
0:00:37.3]} 32. Kf2 {[%clk 0:01:13.3]} 32... Rc8 {[%clk 0:00:36.2]} 33. Kf3
{[%clk 0:01:09.7]} 33... Rc2 {[%clk 0:00:34.7]} 34. Rh5 {[%clk 0:01:07.2]} 34...
Rxb2 {[%clk 0:00:31.2]} 35. Rd5 {[%clk 0:01:07.5]} 35... h6 {[%clk 0:00:25.6]}
36. Kf4 {[%clk 0:01:06.4]} 36... b4 {[%clk 0:00:18.1]} 37. Kf5 {[%clk 0:01:06]}
37... Kh7 {[%clk 0:00:17.1]} 38. Rxd4 {[%clk 0:01:04.6]} 38... b3 {[%clk
0:00:15.7]} 39. e5 {[%clk 0:01:04.9]} 39... Rf2+ {[%clk 0:00:12.9]} 40. Ke6
{[%clk 0:01:04.5]} 40... b2 {[%clk 0:00:09.5]} 41. Rb4 {[%clk 0:01:04.9]} 41...
Rd2 {[%clk 0:00:09.5]} 42. d4 {[%clk 0:01:04.5]} 42... Kg6 {[%clk 0:00:08.8]}
43. d5 {[%clk 0:01:04.2]} 43... Kg5 {[%clk 0:00:06.9]} 44. d6 {[%clk 0:01:04.4]}
44... g6 {[%clk 0:00:06.4]} 45. Ke7 {[%clk 0:01:04.1]} 45... h5 {[%clk
0:00:06.4]} 46. d7 {[%clk 0:01:04.2]} 46... h4 {[%clk 0:00:05.8]} 47. d8=Q
{[%clk 0:01:02.1]} 47... Rxd8 {[%clk 0:00:03.5]} 48. Kxd8 {[%clk 0:01:01.3]}
48... h3 {[%clk 0:00:04.1]} 49. Rxb2 {[%clk 0:01:01.6]} 49... Kxg4 {[%clk
0:00:04.5]} 50. e6 {[%clk 0:01:01.9]} 50... Kf5 {[%clk 0:00:03.4]} 51. e7 {[%clk
0:01:02.2]} 51... g5 {[%clk 0:00:04]} 52. e8=Q {[%clk 0:01:02.3]} 1-0

[Event "*** Titled Tuesday Blitz"]
[Site "Chess.com"]
[Date "2020.05.05"]
[Round "1"]
[White "Efremov_Vlad"]
[Black "Noam_Vitenberg"]
[Result "1/2-1/2"]
[WhiteElo "2119"]
[BlackElo "2498"]
[TimeControl "180+1"]
[EndTime "10:07:15 PDT"]
[Termination "Game drawn by repetition"]

1. c4 {[%clk 0:03:00.9]} 1... e6 {[%clk 0:02:56.3]} 2. d4 {[%clk 0:03:00.3]}
2... d5 {[%clk 0:02:55.3]} 3. Nf3 {[%clk 0:03:00.3]} 3... Nf6 {[%clk 0:02:50.9]}
4. Nc3 {[%clk 0:02:59.6]} 4... Bb4 {[%clk 0:02:48]} 5. Qa4+ {[%clk 0:02:58.9]}
5... Nc6 {[%clk 0:02:46]} 6. e3 {[%clk 0:02:59.3]} 6... O-O {[%clk 0:02:41.9]}
7. Bd2 {[%clk 0:02:59.4]} 7... dxc4 {[%clk 0:02:24]} 8. Bxc4 {[%clk 0:02:58.2]}
8... Bd6 {[%clk 0:02:22.5]} 9. a3 {[%clk 0:02:27.3]} 9... e5 {[%clk 0:02:18.5]}
10. dxe5 {[%clk 0:02:26.7]} 10... Nxe5 {[%clk 0:02:13.7]} 11. Nxe5 {[%clk
0:02:26.8]} 11... Bxe5 {[%clk 0:02:13.8]} 12. Qc2 {[%clk 0:02:26.5]} 12... Qe7
{[%clk 0:01:48.3]} 13. O-O {[%clk 0:02:01.8]} 13... Be6 {[%clk 0:01:44.5]} 14.
Bxe6 {[%clk 0:01:55.4]} 14... Qxe6 {[%clk 0:01:45.4]} 15. f4 {[%clk 0:01:46.5]}
15... Bxc3 {[%clk 0:01:43.8]} 16. Qxc3 {[%clk 0:01:21.8]} 16... Rad8 {[%clk
0:01:33.5]} 17. Qc2 {[%clk 0:01:12.9]} 17... Qe4 {[%clk 0:01:20.4]} 18. Rac1
{[%clk 0:00:56.8]} 18... Rfe8 {[%clk 0:01:08.1]} 19. Qxe4 {[%clk 0:00:37]} 19...
Nxe4 {[%clk 0:01:06.8]} 20. Bc3 {[%clk 0:00:37.7]} 20... b6 {[%clk 0:00:47.7]}
21. Rfd1 {[%clk 0:00:34]} 21... c5 {[%clk 0:00:38.8]} 22. Be1 {[%clk 0:00:28.3]}
22... f5 {[%clk 0:00:31.6]} 23. b4 {[%clk 0:00:26.9]} 23... Kf7 {[%clk
0:00:28.3]} 24. bxc5 {[%clk 0:00:25.5]} 24... bxc5 {[%clk 0:00:29.2]} 25. Ba5
{[%clk 0:00:25.1]} 25... Rxd1+ {[%clk 0:00:25.5]} 26. Rxd1 {[%clk 0:00:25.4]}
26... Ke6 {[%clk 0:00:24.3]} 27. Rc1 {[%clk 0:00:16.2]} 27... Kd5 {[%clk
0:00:22.6]} 28. Kf1 {[%clk 0:00:15.4]} 28... c4 {[%clk 0:00:21.5]} 29. Ke2
{[%clk 0:00:15.1]} 29... Rb8 {[%clk 0:00:18.5]} 30. Rd1+ {[%clk 0:00:15.1]}
30... Kc6 {[%clk 0:00:15.3]} 31. Bb4 {[%clk 0:00:13.4]} 31... Rb5 {[%clk
0:00:13.7]} 32. Rc1 {[%clk 0:00:12.7]} 32... Kd5 {[%clk 0:00:12.5]} 33. Rd1+
{[%clk 0:00:13]} 33... Kc6 {[%clk 0:00:12.4]} 34. Rc1 {[%clk 0:00:13.4]} 34...
Kd5 {[%clk 0:00:05.1]} 35. Rd1+ {[%clk 0:00:13.5]} 35... Kc6 {[%clk 0:00:05.1]}
1/2-1/2

[Event "*** Titled Tuesday Blitz"]
[Site "Chess.com"]
[Date "2020.05.05"]
[Round "1"]
[White "LivajaM"]
[Black "gurelediz"]
[Result "1/2-1/2"]
[WhiteElo "2272"]
[BlackElo "2587"]
[TimeControl "180+1"]
[EndTime "10:07:16 PDT"]
[Termination "Game drawn by repetition"]

1. d4 {[%clk 0:03:00.9]} 1... Nf6 {[%clk 0:02:58]} 2. Bg5 {[%clk 0:03:00]} 2...
d5 {[%clk 0:02:57]} 3. Nf3 {[%clk 0:02:57.9]} 3... Ne4 {[%clk 0:02:56.4]} 4. Bf4
{[%clk 0:02:56.8]} 4... Bf5 {[%clk 0:02:55.6]} 5. e3 {[%clk 0:02:56]} 5... e6
{[%clk 0:02:55.2]} 6. c4 {[%clk 0:02:54.9]} 6... Bb4+ {[%clk 0:02:52.8]} 7. Nbd2
{[%clk 0:02:54.7]} 7... g5 {[%clk 0:02:48]} 8. Be5 {[%clk 0:02:41.3]} 8... g4
{[%clk 0:02:37.2]} 9. a3 {[%clk 0:02:41]} 9... gxf3 {[%clk 0:02:08.3]} 10. axb4
{[%clk 0:02:39.3]} 10... f6 {[%clk 0:02:04.3]} 11. Nxe4 {[%clk 0:02:14.5]} 11...
dxe4 {[%clk 0:01:40.5]} 12. Bg3 {[%clk 0:02:10.1]} 12... fxg2 {[%clk 0:01:36.9]}
13. Bxg2 {[%clk 0:02:09.3]} 13... h5 {[%clk 0:01:36.2]} 14. h4 {[%clk
0:01:59.8]} 14... Nc6 {[%clk 0:01:34.3]} 15. Qa4 {[%clk 0:01:54.7]} 15... Kf7
{[%clk 0:01:30.2]} 16. b5 {[%clk 0:01:53]} 16... Ne7 {[%clk 0:01:29.7]} 17. Qc2
{[%clk 0:01:45.9]} 17... Rg8 {[%clk 0:01:23.7]} 18. Bxe4 {[%clk 0:01:45]} 18...
Bxe4 {[%clk 0:01:05.9]} 19. Qxe4 {[%clk 0:01:44.3]} 19... Nf5 {[%clk 0:01:06.8]}
20. Bf4 {[%clk 0:01:34.1]} 20... Rg4 {[%clk 0:00:46.3]} 21. Qxb7 {[%clk
0:01:32.4]} 21... Nxd4 {[%clk 0:00:40.2]} 22. Rxa7 {[%clk 0:01:23.3]} 22... Rxa7
{[%clk 0:00:34.2]} 23. Qxa7 {[%clk 0:01:22.5]} 23... Nf3+ {[%clk 0:00:25.8]} 24.
Ke2 {[%clk 0:01:19.7]} 24... Ng1+ {[%clk 0:00:26]} 25. Rxg1 {[%clk 0:01:11.5]}
25... Rxg1 {[%clk 0:00:23.5]} 26. Qxc7+ {[%clk 0:01:08.4]} 26... Qxc7 {[%clk
0:00:23.7]} 27. Bxc7 {[%clk 0:01:08.9]} 27... Ke7 {[%clk 0:00:24]} 28. Ba5
{[%clk 0:01:01.1]} 28... Rh1 {[%clk 0:00:18.3]} 29. Bb4+ {[%clk 0:00:58.9]}
29... Kd7 {[%clk 0:00:18.1]} 30. c5 {[%clk 0:00:59.2]} 30... Rxh4 {[%clk
0:00:17.6]} 31. c6+ {[%clk 0:00:59.6]} 31... Kc7 {[%clk 0:00:17.2]} 32. Ba5+
{[%clk 0:00:59.7]} 32... Kd6 {[%clk 0:00:16.5]} 33. Bc3 {[%clk 0:00:54.1]} 33...
Rh1 {[%clk 0:00:14.8]} 34. Bxf6 {[%clk 0:00:52.8]} 34... h4 {[%clk 0:00:14.8]}
35. f4 {[%clk 0:00:52.4]} 35... h3 {[%clk 0:00:14.5]} 36. Be5+ {[%clk
0:00:52.5]} 36... Ke7 {[%clk 0:00:12.9]} 37. b6 {[%clk 0:00:51.4]} 37... h2
{[%clk 0:00:09.8]} 38. b7 {[%clk 0:00:48.1]} 38... Re1+ {[%clk 0:00:09.8]} 39.
Kxe1 {[%clk 0:00:47.7]} 39... h1=Q+ {[%clk 0:00:09.3]} 40. Kd2 {[%clk
0:00:46.1]} 40... Qd5+ {[%clk 0:00:08.9]} 41. Ke1 {[%clk 0:00:41.5]} 41... Qa5+
{[%clk 0:00:08.7]} 42. Kf2 {[%clk 0:00:38.6]} 42... Qd2+ {[%clk 0:00:08.3]} 43.
Kf3 {[%clk 0:00:38.1]} 43... Qd1+ {[%clk 0:00:07.3]} 44. Kf2 {[%clk 0:00:36.6]}
44... Qd2+ {[%clk 0:00:07.1]} 45. Kf3 {[%clk 0:00:35.9]} 45... Qd1+ {[%clk
0:00:07.2]} 46. Kf2 {[%clk 0:00:34.6]} 46... Qd2+ {[%clk 0:00:07.1]} 1/2-1/2

[Event "*** Titled Tuesday Blitz"]
[Site "Chess.com"]
[Date "2020.05.05"]
[Round "1"]
[White "northridgehawk"]
[Black "MightyGMpretender"]
[Result "1-0"]
[WhiteElo "2270"]
[BlackElo "2569"]
[TimeControl "180+1"]
[EndTime "10:07:16 PDT"]
[Termination "northridgehawk won by checkmate"]

1. e4 {[%clk 0:03:00.8]} 1... c5 {[%clk 0:02:58.3]} 2. Nf3 {[%clk 0:03:00.3]}
2... d6 {[%clk 0:02:58.3]} 3. d3 {[%clk 0:03:00.2]} 3... g6 {[%clk 0:02:56.1]}
4. g3 {[%clk 0:03:00.1]} 4... Bg7 {[%clk 0:02:56.5]} 5. Bg2 {[%clk 0:03:00.5]}
5... e5 {[%clk 0:02:56.9]} 6. O-O {[%clk 0:03:00.6]} 6... Ne7 {[%clk 0:02:57.4]}
7. c3 {[%clk 0:02:59.5]} 7... Nbc6 {[%clk 0:02:56.4]} 8. h3 {[%clk 0:02:52.8]}
8... O-O {[%clk 0:02:55.3]} 9. Nbd2 {[%clk 0:02:50.3]} 9... h6 {[%clk
0:02:48.4]} 10. a4 {[%clk 0:02:48]} 10... Be6 {[%clk 0:02:47.8]} 11. Nc4 {[%clk
0:02:44.5]} 11... Qd7 {[%clk 0:02:40.1]} 12. Kh2 {[%clk 0:02:43.7]} 12... f5
{[%clk 0:02:35.6]} 13. Ne3 {[%clk 0:02:32.5]} 13... f4 {[%clk 0:02:25.7]} 14.
Nc4 {[%clk 0:02:16.8]} 14... g5 {[%clk 0:02:12.3]} 15. g4 {[%clk 0:02:15.3]}
15... Bf6 {[%clk 0:02:00.3]} 16. Nfd2 {[%clk 0:02:09.7]} 16... Kg7 {[%clk
0:01:52.9]} 17. Bf3 {[%clk 0:02:09.1]} 17... Ng6 {[%clk 0:01:47]} 18. Rh1 {[%clk
0:01:49]} 18... Nh4 {[%clk 0:01:43.1]} 19. Kg1 {[%clk 0:01:48.6]} 19... h5
{[%clk 0:01:36.3]} 20. Kf1 {[%clk 0:01:41.5]} 20... Rh8 {[%clk 0:01:24.2]} 21.
gxh5 {[%clk 0:01:40.8]} 21... Bxh3+ {[%clk 0:01:23.7]} 22. Ke1 {[%clk
0:01:29.3]} 22... g4 {[%clk 0:01:21.6]} 23. Rxh3 {[%clk 0:01:24.2]} 23... gxh3
{[%clk 0:01:20.4]} 24. Nf1 {[%clk 0:01:03]} 24... Bg5 {[%clk 0:01:02]} 25. Bg4
{[%clk 0:01:01.2]} 25... Qe7 {[%clk 0:00:56.1]} 26. Nh2 {[%clk 0:00:58.9]} 26...
Rag8 {[%clk 0:00:51.3]} 27. Kd2 {[%clk 0:00:57.4]} 27... Kf8 {[%clk 0:00:37.4]}
28. Kc2 {[%clk 0:00:57.3]} 28... Bf6 {[%clk 0:00:37]} 29. a5 {[%clk 0:00:48.7]}
29... Rg7 {[%clk 0:00:31.8]} 30. f3 {[%clk 0:00:48.3]} 30... Bg5 {[%clk
0:00:27.4]} 31. Qf1 {[%clk 0:00:47.8]} 31... Ng2 {[%clk 0:00:27.2]} 32. Bd2
{[%clk 0:00:35.7]} 32... Ne3+ {[%clk 0:00:25.4]} 33. Bxe3 {[%clk 0:00:35]} 33...
fxe3 {[%clk 0:00:26.3]} 34. Qxh3 {[%clk 0:00:34]} 34... Bf4 {[%clk 0:00:26]} 35.
Nf1 {[%clk 0:00:31.8]} 35... Qc7 {[%clk 0:00:24]} 36. Nfxe3 {[%clk 0:00:31]}
36... b5 {[%clk 0:00:15.1]} 37. axb6 {[%clk 0:00:30.8]} 37... axb6 {[%clk
0:00:15.6]} 38. Ra8+ {[%clk 0:00:31]} 38... Nd8 {[%clk 0:00:15.2]} 39. Nd5
{[%clk 0:00:30.1]} 39... Qc6 {[%clk 0:00:09.6]} 40. Rxd8+ {[%clk 0:00:29.8]}
40... Kf7 {[%clk 0:00:10.5]} 41. Be6# {[%clk 0:00:29.4]} 1-0